bitfinex/quotes_BTCUSD_20251114
["timestamp","ask_amount","ask_price","bid_price","bid_amount"]
[1763143794009,0.38306,95974.0,95973.0,0.20839194]
[1763143794174,0.40405,95974.0,95973.0,0.20839194]
[1763143794602,0.08105,95974.0,95973.0,0.20839194]
[1763143797192,0.06006,95974.0,95973.0,0.20839194]
[1763143797407,0.08105,95974.0,95973.0,0.20839194]
[1763143797843,0.03545,95974.0,95973.0,0.20839194]
[1763143798065,0.37084158,96000.0,95984.0,0.20836806]
[1763143798066,0.0456,95988.0,95984.0,0.20836806]
[1763143798280,0.06006,95989.0,95987.0,0.20836154]
[1763143799157,0.0456,95989.0,95987.0,0.20836154]
[1763143799399,0.0456,95989.0,95988.0,0.10479654]
[1763143799636,0.69384158,96000.0,95999.0,0.2083355]
[1763143799841,0.3686,96000.0,95999.0,0.2083355]
[1763143801164,0.323,95999.0,95988.0,0.10479654]
[1763143801361,0.323,95999.0,95997.0,0.20833824]
[1763143801565,0.323,95999.0,95997.0,0.20833909]
[1763143802131,0.01934,95998.0,95997.0,0.20833909]
[1763143802289,0.0456,96000.0,95999.0,0.2083355]
[1763143802721,0.0456,96000.0,95997.0,0.20833984]
[1763143802919,0.0456,96000.0,95922.0,0.0834]
[1763143802920,0.01934,95998.0,95980.0,0.20837674]
[1763143803135,0.37084158,95990.0,95979.0,0.01392]
[1763143803461,0.20836012,95988.0,95982.0,0.20837112]
[1763143803597,0.01539,95983.0,95981.0,0.20837385]
[1763143804025,0.06494,95982.0,95974.0,0.01392]
[1763143804227,0.0456,95982.0,95975.0,0.2083876]
[1763143804414,0.0456,95982.0,95981.0,0.20837457]
[1763143804605,0.06494,95982.0,95981.0,0.20837457]
[1763143804808,0.06494,95982.0,95980.0,0.20837587]
[1763143805005,0.01934,95980.0,95978.0,0.20838083]
[1763143805206,0.0456,95982.0,95970.0,0.01041992]
[1763143805464,0.01934,95971.0,95954.0,0.01392]
[1763143805785,0.01934,95965.0,95954.0,0.01392]
[1763143805966,0.01934,95965.0,95964.0,0.20841148]
[1763143806093,0.01934,95965.0,95954.0,0.01392]
[1763143806094,0.01539,95964.0,95963.0,0.20841365]
[1763143806508,0.03473,95964.0,95963.0,0.20841365]
[1763143806711,0.0456,95970.0,95969.0,0.20840062]
[1763143807341,0.37084158,95980.0,95979.0,0.20837891]
[1763143807544,0.323,95982.0,95981.0,0.20837457]
[1763143807771,0.323,95982.0,95961.0,0.01392]
[1763143807772,0.01934,95980.0,95963.0,0.20841318]
[1763143807970,0.323,95972.0,95964.0,0.20841089]
[1763143808311,0.3686,95972.0,95967.0,0.20840461]
[1763143808633,0.03473,95965.0,95964.0,0.20841148]
[1763143808786,0.01539,95965.0,95964.0,0.20841148]
[1763143808996,0.38556158,95974.0,95971.0,0.20839628]
[1763143809285,0.38556158,95974.0,95954.0,0.01392]
[1763143809286,0.0199,95972.0,95970.0,0.20839839]
[1763143809667,0.323,95980.0,95976.0,0.2083838]
[1763143809866,0.0456,95979.0,95978.0,0.20837942]
[1763143810586,0.02864,95995.0,95968.0,0.10479654]
[1763143810799,0.0456,95994.0,95993.0,0.20834852]
[1763143811009,0.323,95999.0,95997.0,0.20833984]
[1763143811219,0.02864,96005.0,95999.0,0.2083355]
[1763143811812,0.0456,96000.0,95999.0,0.2083355]
[1763143812049,0.20830331,96014.0,95999.0,0.2083355]
[1763143812050,0.02864,96013.0,96005.0,0.20832248]
[1763143812252,0.40868297,96030.0,96005.0,0.20832248]
[1763143812253,0.0456,96006.0,96005.0,0.20832248]
[1763143812476,0.0655,96006.0,96004.0,0.20832393]
[1763143812690,0.0456,96006.0,96004.0,0.20832393]
[1763143813212,0.37084158,96014.0,96013.0,0.20830512]
[1763143813416,0.37084158,96014.0,95999.0,0.2083335]
[1763143813417,0.23694512,96013.0,96008.0,0.20831477]
[1763143813616,0.02864,96013.0,95970.0,0.01041992]
[1763143813883,0.01472,95991.0,95990.0,0.20835503]
[1763143814535,0.08022,95991.0,95990.0,0.20835503]
[1763143814737,0.0456,95991.0,95990.0,0.20835503]
[1763143815307,0.0655,95991.0,95989.0,0.20835707]
[1763143815487,0.0199,95990.0,95970.0,0.01041992]
[1763143815685,0.53136054,95988.0,95970.0,0.01041992]
[1763143815887,0.323,95986.0,95983.0,0.20836848]
[1763143816087,0.323,95986.0,95984.0,0.20836719]
[1763143816330,0.323,95986.0,95970.0,0.01041992]
[1763143816529,0.323,95986.0,95984.0,0.2083678]
[1763143816940,0.0456,95991.0,95990.0,0.20835503]
[1763143817132,0.0456,95991.0,95964.0,0.52161548]
[1763143817346,0.0456,95991.0,95989.0,0.20835661]
[1763143817543,0.0456,95991.0,95987.0,0.20836082]
[1763143817544,0.323,95989.0,95987.0,0.20836082]
[1763143818152,0.323,95987.0,95971.0,0.20839628]
[1763143818483,0.37084158,95981.0,95971.0,0.001]
[1763143818685,0.04556,95980.0,95971.0,0.001]
[1763143818857,0.04556,95980.0,95978.0,0.20838013]
[1763143819238,0.04556,95980.0,95970.0,0.10479654]
[1763143819440,0.04556,95980.0,95975.0,0.20838705]
[1763143819441,0.20837922,95979.0,95975.0,0.20838705]
[1763143819655,0.2083841,95977.0,95973.0,0.20839036]
[1763143819857,0.0199,95974.0,95971.0,0.001]
[1763143820058,0.22829411,95972.0,95971.0,0.001]
[1763143820459,0.55129411,95972.0,95971.0,0.001]
[1763143820908,0.55129411,95972.0,95918.0,0.07467652]
[1763143820909,0.03462,95963.0,95932.0,0.00761]
[1763143821118,0.03462,95963.0,95915.0,0.00761]
[1763143821119,0.03462,95924.0,95915.0,0.00761]
[1763143821326,0.03462,95924.0,95890.0,0.01042861]
[1763143821327,0.08018,95924.0,95890.0,0.01042861]
[1763143821525,0.0199,95916.0,95890.0,0.01042861]
[1763143821735,0.323,95909.0,95890.0,0.01042861]
[1763143821939,0.37084158,95900.0,95887.0,0.00761]
[1763143822116,0.38328,95899.0,95887.0,0.00761]
[1763143822558,0.0199,95888.0,95881.0,0.2085916]
[1763143822729,0.0199,95888.0,95886.0,0.20858102]
[1763143822730,0.04556,95887.0,95886.0,0.20858102]
[1763143824255,0.06546,95887.0,95886.0,0.20858102]
[1763143824387,0.06546,95887.0,95884.0,0.20858398]
[1763143824592,0.37084158,95894.0,95892.0,0.20856797]
[1763143824801,0.323,95895.0,95894.0,0.20856362]
[1763143824998,0.0655,95895.0,95890.0,0.20857127]
[1763143825201,0.0199,95893.0,95892.0,0.20856797]
[1763143826208,0.0199,95893.0,95891.0,0.20856993]
[1763143826419,0.0655,95892.0,95875.0,0.00761]
[1763143826637,0.323,95884.0,95858.0,0.01522]
[1763143826838,0.37084158,95883.0,95881.0,0.20859004]
[1763143827074,0.37084158,95883.0,95881.0,0.20859008]
[1763143827075,0.0456,95883.0,95881.0,0.20859008]
[1763143827240,0.0199,95882.0,95876.0,0.20860139]
[1763143827441,0.0199,95882.0,95856.0,0.11562841]
[1763143827442,0.0199,95882.0,95856.0,0.10479654]
[1763143827677,0.0199,95882.0,95879.0,0.20859431]
[1763143827894,0.0199,95882.0,95880.0,0.20859229]
[1763143828175,0.03462,95880.0,95877.0,0.20859844]
[1763143828333,0.01472,95880.0,95877.0,0.20859844]
[1763143828534,0.0199,95878.0,95877.0,0.20859844]
[1763143828780,0.01472,95880.0,95879.0,0.20859625]
[1763143829414,0.0456,95883.0,95882.0,0.20858972]
[1763143829645,0.323,95890.0,95889.0,0.20857449]
[1763143829827,0.3686,95890.0,95889.0,0.20857449]
[1763143829984,0.0456,95890.0,95889.0,0.20857449]
[1763143830773,0.33772,95899.0,95897.0,0.20855709]
[1763143830983,0.01042426,95930.0,95882.0,0.00645]
[1763143830984,0.02851,95919.0,95882.0,0.02051]
[1763143831217,0.01472,95924.0,95923.0,0.20850056]
[1763143831432,0.37084158,95930.0,95929.0,0.20848752]
[1763143831673,0.01489,95932.0,95931.0,0.20848318]
[1763143831892,0.06504,95930.0,95910.0,0.01042644]
[1763143832111,0.37084158,95920.0,95906.0,0.00761]
[1763143832329,0.01944,95907.0,95904.0,0.20854187]
[1763143832537,0.0456,95906.0,95904.0,0.20854087]
[1763143832749,0.01944,95905.0,95895.0,0.2085601]
[1763143833008,0.01944,95905.0,95890.0,0.01042861]
[1763143833222,0.0456,95906.0,95905.0,0.2085397]
[1763143833859,0.06504,95906.0,95900.0,0.20854913]
[1763143833988,0.01489,95911.0,95904.0,0.20854186]
[1763143834196,0.01489,95911.0,95910.0,0.20852882]
[1763143834400,0.06049,95911.0,95910.0,0.20852882]
[1763143834599,0.02851,95921.0,95920.0,0.20850708]
[1763143834803,0.01489,95920.0,95900.0,0.01042752]
[1763143835004,0.323,95919.0,95918.0,0.20850977]
[1763143835204,0.3686,95919.0,95918.0,0.20850977]
[1763143835445,0.323,95919.0,95918.0,0.20850977]
[1763143835947,0.323,95919.0,95918.0,0.31330631]
[1763143836141,0.02851,95938.0,95931.0,0.20848318]
[1763143836341,0.01489,95958.0,95928.0,0.20848832]
[1763143836553,0.01489,95958.0,95922.0,0.01406]
[1763143836554,0.0456,95941.0,95933.0,0.10479654]
[1763143836770,0.0456,95941.0,95939.0,0.20846508]
[1763143837183,0.20842327,95959.0,95954.0,0.20843263]
[1763143837406,0.37084158,95960.0,95956.0,0.20842811]
[1763143837557,0.0456,95957.0,95955.0,0.20843039]
[1763143838180,0.01489,95956.0,95955.0,0.20843039]
[1763143838383,0.01489,95956.0,95934.0,0.01406]
[1763143838614,0.37084158,95950.0,95947.0,0.2084469]
[1763143838792,0.20843103,95955.0,95951.0,0.20843877]
[1763143838995,0.33789,95956.0,95952.0,0.20843696]
[1763143839216,0.323,95956.0,95953.0,0.20843483]
[1763143839418,0.323,95956.0,95944.0,0.20845381]
[1763143839419,0.323,95954.0,95951.0,0.2084388]
[1763143839633,0.323,95956.0,95951.0,0.2084388]
[1763143839634,0.20842975,95956.0,95951.0,0.2084388]
[1763143839850,0.02129121,95955.0,95935.0,0.3127116]
[1763143840056,0.0466,95957.0,95934.0,0.22253448]
[1763143840057,0.0456,95957.0,95956.0,0.20842886]
[1763143841057,0.323,95969.0,95955.0,0.00645]
[1763143841233,0.0456,95968.0,95966.0,0.20840626]
[1763143841594,0.01489,95977.0,95966.0,0.20840626]
[1763143841811,0.2083876,95975.0,95970.0,0.20839672]
[1763143842168,0.34584661,95974.0,95970.0,0.20839672]
[1763143842382,0.02284661,95974.0,95972.0,0.20839348]
[1763143842556,0.323,95976.0,95975.0,0.2083876]
[1763143842712,0.3686,95976.0,95964.0,0.2084112]
[1763143842913,0.01958549,95975.0,95972.0,0.20839191]
[1763143843140,0.02851,95997.0,95987.0,0.20836154]
[1763143843335,0.01035714,96001.0,96000.0,0.20833333]
[1763143843533,0.05595714,96001.0,96000.0,0.20833333]
[1763143843715,0.0456,96001.0,96000.0,0.20833333]
[1763143844322,0.00024441,96019.0,96014.0,0.20830264]
[1763143844635,0.0456,96018.0,96016.0,0.20829724]
[1763143844860,0.0456,96017.0,96016.0,0.20829716]
[1763143845060,0.25389777,96017.0,96010.0,0.20830969]
[1763143845309,0.34903732,96016.0,96009.0,0.20831217]
[1763143845515,0.02603732,96016.0,95999.0,0.00761]
[1763143845747,0.37084158,96010.0,95991.0,0.20835286]
[1763143845885,0.37084158,96010.0,95987.0,0.10479654]
[1763143845886,0.01944,95999.0,95992.0,0.2083499]
[1763143846145,0.04556,95998.0,95997.0,0.20833984]
[1763143846802,0.04556,95998.0,95989.0,0.00761]
[1763143846954,0.04556,95998.0,95996.0,0.20834081]
[1763143847379,0.04556,95998.0,95995.0,0.2083422]
[1763143847604,0.04556,95998.0,95996.0,0.20834081]
[1763143848720,0.323,96009.0,96008.0,0.20831597]
[1763143848880,0.36856,96009.0,95998.0,0.20833767]
[1763143849084,0.02603949,96008.0,96002.0,0.20832758]
[1763143849434,0.02603949,96008.0,96005.0,0.20832148]
[1763143849638,0.36856,96009.0,96008.0,0.20831597]
[1763143850243,0.04556,96009.0,96008.0,0.20831597]
[1763143850602,0.04556,96009.0,96006.0,0.20831863]
[1763143850603,0.04556,96009.0,96007.0,0.2083175]
[1763143851956,0.04556,96009.0,96004.0,0.20831802]
[1763143852107,0.01489,96006.0,96005.0,0.2083214]
[1763143853140,0.03433,96006.0,96005.0,0.2083214]
[1763143853563,0.03433,96006.0,95973.0,0.01406]
[1763143853777,0.01944,96003.0,96002.0,0.20832899]
[1763143854443,0.01489,96006.0,96005.0,0.20832248]
[1763143854642,0.06045,96006.0,96005.0,0.20832248]
[1763143856552,0.06045,96006.0,95978.0,0.00761]
[1763143856553,0.07989,96006.0,95978.0,0.00761]
[1763143856750,0.37084158,95994.0,95980.0,0.05597883]
[1763143856917,0.04556,95996.0,95995.0,0.20834418]
[1763143857841,0.02032823,96006.0,95994.0,0.20834605]
[1763143857842,0.01489,96006.0,95994.0,0.20834605]
[1763143858044,0.01489,96006.0,96005.0,0.20832248]
[1763143858246,0.06045,96006.0,96005.0,0.20832248]
[1763143858976,0.01489,96006.0,96005.0,0.20832248]
[1763143859145,0.06045,96006.0,96005.0,0.20832248]
[1763143861023,0.04556,96006.0,96005.0,0.20832248]
[1763143861273,0.01349,96035.0,96018.0,0.20829427]
[1763143861473,0.62142727,96030.0,96005.0,0.10479654]
[1763143861671,0.63491727,96015.0,96003.0,0.00465]
[1763143861815,0.68047727,96015.0,96004.0,0.10479654]
[1763143862014,0.68047727,96015.0,96012.0,0.20830676]
[1763143862224,0.00024441,96019.0,96018.0,0.20829427]
[1763143863074,0.00024441,96019.0,95998.0,0.10479654]
[1763143863265,0.01837,96004.0,95983.0,0.10479654]
[1763143863468,0.20835503,95990.0,95961.0,0.01226]
[1763143863732,0.01349,95991.0,95961.0,0.01226]
[1763143863733,0.04556,95989.0,95986.0,0.20836149]
[1763143863930,0.01837,95999.0,95998.0,0.20833767]
[1763143863931,0.323,95999.0,95998.0,0.20833767]
[1763143864133,0.38693,95999.0,95966.0,0.04556]
[1763143864308,0.62142727,95990.0,95988.0,0.20835777]
[1763143864511,0.323,95997.0,95994.0,0.20834612]
[1763143864712,0.04556,95996.0,95994.0,0.20834612]
[1763143865147,0.04556,95996.0,95982.0,0.10479654]
[1763143865525,0.62142727,95998.0,95997.0,0.20833984]
[1763143865685,0.04556,95998.0,95997.0,0.20833984]
[1763143866109,0.02742798,96035.0,96017.0,0.20829644]
[1763143866333,0.02196362,96048.0,96017.0,0.57471518]
[1763143866550,4.41e-06,96019.0,96018.0,0.41197874]
[1763143866753,0.04556,96046.0,96045.0,0.20823572]
[1763143867387,0.0002,96060.0,96059.0,0.20820537]
[1763143868253,0.0002,96060.0,96059.0,0.53120537]
[1763143868839,0.0002,96060.0,96059.0,0.63600191]
[1763143869268,0.0002,96060.0,96059.0,0.10479654]
[1763143869416,0.0002,96060.0,96059.0,0.10579654]
[1763143870035,0.0002,96060.0,96059.0,0.10679654]
[1763143870704,0.0002,96060.0,96059.0,0.10479654]
[1763143870906,0.0002,96060.0,96045.0,0.04552]
[1763143871084,0.04572,96060.0,96059.0,0.002]
[1763143871343,0.04572,96060.0,96059.0,0.001]
[1763143871547,0.04572,96060.0,96059.0,0.002]
[1763143871774,0.04572,96060.0,96059.0,0.001]
[1763143871990,0.06397424,96060.0,96044.0,0.20823706]
[1763143872195,0.0002,96060.0,96057.0,0.20820861]
[1763143873332,0.0002,96060.0,96052.0,0.20822032]
[1763143873505,0.0002,96060.0,96047.0,0.04552]
[1763143873723,0.0002,96060.0,96050.0,0.20822456]
[1763143873923,0.62162727,96060.0,96057.0,0.001]
[1763143874065,0.0002,96060.0,96057.0,0.001]
[1763143874267,0.2082259,96050.0,96031.0,0.20826493]
[1763143874512,0.62142727,96041.0,96015.0,0.04552]
[1763143874673,0.62142727,96030.0,96025.0,0.20827783]
[1763143874871,0.62142727,96030.0,96021.0,0.20828777]
[1763143875058,0.04552,96035.0,96027.0,0.20827284]
[1763143875259,0.04552,96035.0,96020.0,0.01041449]
[1763143875466,0.04552,96035.0,96033.0,0.20826163]
[1763143875675,0.01338,96049.0,96034.0,0.10837133]
[1763143875887,0.04552,96048.0,96047.0,0.20823138]
[1763143876296,0.0002,96060.0,96056.0,0.20821161]
[1763143876514,0.0002,96060.0,96059.0,0.20820537]
[1763143876714,0.0002,96060.0,96043.0,0.04552]
[1763143876715,0.0002,96060.0,96047.0,0.02789226]
[1763143876941,0.0002,96060.0,96049.0,0.10479654]
[1763143877312,0.0002,96060.0,96059.0,0.20820537]
[1763143877824,0.0002,96060.0,96059.0,0.20920537]
[1763143878024,0.00131292,96060.0,96059.0,0.20920537]
[1763143878435,0.00131292,96060.0,96059.0,0.53220537]
[1763143878892,0.00131292,96060.0,96059.0,0.57562411]
[1763143879087,0.00131292,96060.0,96059.0,0.57462411]
[1763143879287,0.00131292,96060.0,96059.0,0.63040863]
[1763143879512,0.00131292,96060.0,96059.0,0.57462411]
[1763143879912,0.00131292,96060.0,96059.0,0.57562411]
[1763143880052,0.00131292,96060.0,96059.0,0.57662411]
[1763143880264,0.00131292,96060.0,96059.0,0.62214411]
[1763143880493,0.00131292,96060.0,96059.0,0.57772537]
[1763143880894,0.00131292,96060.0,96059.0,0.57972537]
[1763143881140,0.00131292,96060.0,96059.0,0.25572537]
[1763143881560,0.00131292,96060.0,96059.0,0.25772537]
[1763143881698,0.00131292,96060.0,96059.0,0.25572537]
[1763143882095,0.00131292,96060.0,96059.0,0.003]
[1763143882318,0.00131292,96060.0,96059.0,0.21020537]
[1763143882524,0.00131292,96060.0,96058.0,0.31300248]
[1763143882734,0.00131292,96060.0,96059.0,0.001]
[1763143882933,0.0002,96060.0,96059.0,0.002]
[1763143883367,0.0002,96060.0,96059.0,0.20920537]
[1763143883679,0.0002,96060.0,96059.0,0.001]
[1763143883680,0.2278232,96060.0,96059.0,0.001]
[1763143884205,0.62142727,96045.0,96014.0,0.02784147]
[1763143884410,0.04552,96044.0,96023.0,0.20828251]
[1763143884610,0.04552,96044.0,96020.0,0.01041449]
[1763143884829,0.04552,96044.0,96031.0,0.20826426]
[1763143885029,0.04552,96044.0,96032.0,0.0042947]
[1763143885235,0.04552,96044.0,96038.0,0.20825049]
[1763143885762,0.04552,96044.0,96033.0,0.20826108]
[1763143886398,0.04552,96044.0,96010.0,0.0475491]
[1763143886602,0.04552,96044.0,96021.0,0.0019775]
[1763143886811,0.20825518,96037.0,96012.0,0.02784147]
[1763143887058,0.01338,96021.0,96020.0,0.20828993]
[1763143887255,0.20827434,96028.0,96006.0,0.36852]
[1763143887457,0.04552,96027.0,96000.0,0.03825813]
[1763143887633,0.25379692,96027.0,96007.0,0.10479654]
[1763143887837,0.20828939,96021.0,96006.0,0.20831881]
[1763143888081,0.62142727,96020.0,95999.0,0.20833549]
[1763143888285,0.20830901,96012.0,95995.0,0.2083421]
[1763143888494,0.04552,96011.0,95994.0,0.20834485]
[1763143888699,0.04552,96011.0,95976.0,0.05578452]
[1763143888700,0.01942,95995.0,95984.0,0.02789302]
[1763143888906,0.04552,95999.0,95996.0,0.20834201]
[1763143889123,0.04552,96005.0,95990.0,0.01041775]
[1763143889295,0.04552,96005.0,96000.0,0.20833152]
[1763143889659,0.04552,96005.0,96002.0,0.20832735]
[1763143889857,0.04552,96005.0,95998.0,0.20833622]
[1763143890207,0.04552,96005.0,95995.0,0.20934269]
[1763143890208,0.04552,96005.0,95995.0,0.001]
[1763143890450,0.01942,95996.0,95995.0,0.001]
[1763143890822,0.01942,95996.0,95994.0,0.20834562]
[1763143891002,0.02804,96004.0,96000.0,0.20833173]
[1763143891202,0.02804,96004.0,95995.0,0.2083437]
[1763143891408,0.23636473,96004.0,95985.0,0.20836437]
[1763143891636,0.20833675,95999.0,95987.0,0.20836123]
[1763143891837,0.0189,95986.0,95975.0,0.02789302]
[1763143892021,0.0189,95985.0,95970.0,0.01041992]
[1763143892226,0.0189,95985.0,95983.0,0.208369]
[1763143893116,0.01322,95984.0,95983.0,0.208369]
[1763143894394,0.04552,95985.0,95980.0,0.01041883]
[1763143894729,0.01322,95993.0,95991.0,0.20835187]
[1763143894903,0.04552,95992.0,95991.0,0.20835187]
[1763143895057,0.01322,95993.0,95991.0,0.20835187]
[1763143895259,0.04552,95992.0,95991.0,0.20835187]
[1763143895887,0.04552,95998.0,95983.0,0.20836974]
[1763143896050,0.04552,95998.0,95995.0,0.20834296]
[1763143896253,0.04552,95998.0,95996.0,0.20834079]
[1763143897100,0.04552,95998.0,95981.0,0.20837023]
[1763143897101,0.04552,96002.0,95986.0,0.20836302]
[1763143897298,0.04552,96002.0,96000.0,0.20833164]
[1763143897858,0.01338,96012.0,96011.0,0.20830946]
[1763143898087,0.01338,96012.0,95991.0,0.05]
[1763143898088,0.0589,96012.0,95991.0,0.05]
[1763143898295,0.04493868,96011.0,96003.0,0.20832624]
[1763143898505,0.04493868,96011.0,96005.0,0.20832181]
[1763143898711,0.0189,96011.0,96009.0,0.20831322]
[1763143899306,0.0189,96010.0,96009.0,0.20831322]
[1763143899606,0.0189,96010.0,95997.0,0.10479654]
[1763143899607,0.0002444,96028.0,96005.0,0.20832041]
[1763143899845,0.04552,96020.0,96018.0,0.20829365]
[1763143900622,0.04552,96020.0,96017.0,0.2082941]
[1763143900768,0.04552,96020.0,96018.0,0.2082937]
[1763143901192,0.04552,96020.0,96017.0,0.20829489]
[1763143901390,0.04552,96020.0,96018.0,0.2082935]
[1763143901595,0.04552,96020.0,95999.0,0.04552]
[1763143901794,0.04552,96020.0,96000.0,0.02228511]
[1763143902029,0.04552,96020.0,96018.0,0.20829393]
[1763143902250,0.04552,96020.0,95982.0,0.83955789]
[1763143902439,0.25381047,96020.0,96000.0,0.02228796]
[1763143902654,0.25381047,96020.0,96001.0,0.02228796]
[1763143902972,0.04552,96020.0,96012.0,0.20830621]
[1763143903169,0.04552,96020.0,96012.0,0.31310275]
[1763143903386,0.04552,96020.0,96012.0,0.10479654]
[1763143903525,0.0189,96013.0,96003.0,0.20832614]
[1763143903725,0.0189,96012.0,95999.0,0.2538547]
[1763143903927,0.20831236,96010.0,95999.0,0.20833393]
[1763143904129,0.20831179,96010.0,95999.0,0.20833393]
[1763143904333,0.0189,96000.0,95991.0,0.05]
[1763143904554,0.0189,96000.0,95997.0,0.10479654]
[1763143904555,0.01322,95998.0,95997.0,0.10479654]
[1763143905119,0.01322,95998.0,95991.0,0.05]
[1763143905342,0.01322,95998.0,95996.0,0.20834142]
[1763143905571,0.01322,95998.0,95992.0,0.323]
[1763143905754,0.01322,95998.0,95995.0,0.20834172]
[1763143906068,0.01322,95998.0,95996.0,0.20833995]
[1763143906266,0.04552,96009.0,96006.0,0.20832031]
[1763143906455,0.04552,96010.0,96009.0,0.2083138]
[1763143906852,0.01322,96014.0,96012.0,0.20830556]
[1763143907480,0.01322,96014.0,96012.0,0.20830594]
[1763143908334,0.01322,96014.0,96013.0,0.20830512]
[1763143908871,0.01322,96014.0,96012.0,0.20830659]
[1763143909071,0.01322,96014.0,95990.0,0.01041775]
[1763143909072,0.04552,96017.0,96016.0,0.20829861]
[1763143909482,0.04552,96017.0,96014.0,0.20830152]
[1763143909704,0.04552,96017.0,96016.0,0.20829861]
[1763143910111,0.04552,96017.0,96012.0,0.20830615]
[1763143910317,0.04552,96017.0,96016.0,0.20829861]
[1763143911236,0.01322,96018.0,96017.0,0.20829644]
[1763143911595,0.0002444,96028.0,96027.0,0.20827475]
[1763143911940,0.0457644,96028.0,96027.0,0.20827475]
[1763143913198,0.0646644,96028.0,96000.0,0.33341666]
[1763143913453,0.0646644,96028.0,96025.0,0.2082784]
[1763143913677,0.0189,96026.0,96015.0,0.20829652]
[1763143913886,0.0189,96026.0,96014.0,0.10479654]
[1763143913887,0.0457644,96028.0,96025.0,0.20827909]
[1763143914092,0.0457644,96028.0,96027.0,0.20827475]
[1763143915635,0.0002444,96028.0,96027.0,0.20827475]
[1763143919659,0.0002444,96028.0,96021.0,0.20828777]
[1763143919906,0.0002444,96028.0,96027.0,0.20827475]
[1763143923377,0.0002444,96028.0,96027.0,0.57469349]
[1763143923554,0.0002444,96028.0,96027.0,0.57569349]
[1763143924358,0.0002444,96028.0,96027.0,0.57469349]
[1763143924561,0.0002444,96028.0,96027.0,0.65347791]
[1763143925532,0.0002444,96028.0,96027.0,0.57569349]
[1763143925814,0.0002444,96028.0,96027.0,0.57669349]
[1763143926005,0.0002,96060.0,96059.0,0.20820537]
[1763143926158,0.0002,96060.0,96059.0,0.25372537]
[1763143926769,0.0002,96060.0,96059.0,0.62014411]
[1763143926991,0.0002,96060.0,96059.0,0.64812767]
[1763143927193,0.0002,96060.0,96059.0,0.62014411]
[1763143928735,0.0002,96060.0,96059.0,0.62114411]
[1763143929145,0.0002,96060.0,96059.0,0.62214411]
[1763143929421,0.0002,96060.0,96059.0,0.65005745]
[1763143930157,0.0002,96060.0,96059.0,0.62214411]
[1763143930586,0.0002,96060.0,96059.0,0.65933607]
[1763143930982,0.0002,96060.0,96059.0,0.62214411]
[1763143931846,0.00106856,96060.0,96059.0,0.62114411]
[1763143931994,0.00106856,96060.0,96059.0,0.62014411]
[1763143932198,0.00106856,96060.0,96059.0,0.62214411]
[1763143932548,0.00106856,96060.0,96059.0,0.62314411]
[1763143933723,0.00106856,96060.0,96059.0,0.77294411]
[1763143933928,0.00106856,96060.0,96059.0,0.62314411]
[1763143934342,0.00106856,96060.0,96059.0,0.65098924]
[1763143934956,0.0002,96080.0,96079.0,0.57458077]
[1763143935158,0.0002,96080.0,96079.0,0.72485731]
[1763143936177,0.0002,96080.0,96079.0,0.72585731]
[1763143936785,0.02600915,96120.0,96079.0,0.72585731]
[1763143936786,0.0002,96130.0,96129.0,0.20805376]
[1763143937200,0.0002,96130.0,96115.0,0.323]
[1763143937398,0.0002,96130.0,96120.0,0.20807124]
[1763143937611,0.0002,96130.0,96122.0,0.20806794]
[1763143937809,0.0002,96130.0,96128.0,0.20805435]
[1763143939828,0.0002,96130.0,96129.0,0.323]
[1763143940033,0.0002,96130.0,96129.0,0.36641874]
[1763143940213,0.0002,96160.0,96125.0,0.25353588]
[1763143940214,0.0002,96160.0,96149.0,0.57442922]
[1763143940428,0.0002,96160.0,96159.0,0.10479654]
[1763143940651,0.0002,96160.0,96131.0,0.20804943]
[1763143940925,0.02633,96160.0,96138.0,0.323]
[1763143941124,0.02633,96160.0,96132.0,0.04548]
[1763143941125,0.0002,96160.0,96140.0,0.37029178]
[1763143941326,0.0002,96160.0,96159.0,0.10479654]
[1763143941743,0.002911,96160.0,96159.0,0.10479654]
[1763143942906,0.002911,96160.0,96131.0,0.323]
[1763143943113,0.01298,96155.0,96151.0,0.10479654]
[1763143943347,0.01298,96137.0,96110.0,0.01040474]
[1763143943784,0.26017559,96136.0,96112.0,0.04544]
[1763143943946,0.20807386,96120.0,96112.0,0.04544]
[1763143944160,0.2080725,96121.0,96112.0,0.04544]
[1763143944359,0.01298,96113.0,96110.0,0.20809421]
[1763143944600,0.01298,96124.0,96118.0,0.20807619]
[1763143944914,0.01298,96124.0,96119.0,0.00239691]
[1763143945043,0.01298,96124.0,96116.0,0.20808004]
[1763143945253,0.01298,96124.0,96111.0,0.20809272]
[1763143945456,0.01298,96124.0,96121.0,0.20806965]
[1763143945691,0.01298,96124.0,96120.0,0.2080719]
[1763143945900,0.01298,96124.0,96122.0,0.20806866]
[1763143946102,0.01298,96132.0,96123.0,0.00234804]
[1763143946303,0.22102875,96132.0,96124.0,0.10479654]
[1763143946536,0.04544,96141.0,96130.0,0.20805112]
[1763143946742,0.04544,96141.0,96134.0,0.20804087]
[1763143946946,0.21840876,96150.0,96135.0,0.208039]
[1763143947165,0.01040041,96150.0,96138.0,0.20803367]
[1763143947308,0.04544,96154.0,96126.0,0.04544]
[1763143947660,0.38069219,96150.0,96127.0,0.00129937]
[1763143947848,0.01454549,96149.0,96126.0,0.04544]
[1763143948052,0.02117399,96148.0,96126.0,0.04544]
[1763143948205,0.02117399,96148.0,96128.0,0.20805441]
[1763143948206,0.2080344,96138.0,96128.0,0.20805441]
[1763143948397,0.00208797,96137.0,96128.0,0.20805441]
[1763143948598,0.01298,96137.0,96127.0,0.20805808]
[1763143948910,0.2210178,96137.0,96127.0,0.20805741]
[1763143949109,0.20804828,96132.0,96122.0,0.25350874]
[1763143949336,0.03911,96137.0,96122.0,0.04544]
[1763143949534,0.20804845,96132.0,96124.0,0.10479654]
[1763143949851,0.20805303,96130.0,96124.0,0.10479654]
[1763143950054,0.20805353,96130.0,96122.0,0.04544]
[1763143950258,0.20804077,96135.0,96126.0,0.20805906]
[1763143950463,0.02613,96136.0,96128.0,0.20805538]
[1763143950464,0.23417001,96136.0,96128.0,0.20805538]
[1763143950668,0.22097966,96155.0,96129.0,0.00447858]
[1763143950931,0.22097966,96155.0,96120.0,0.01040366]
[1763143950932,0.23750243,96130.0,96100.0,0.3806976]
[1763143951077,0.02945,96130.0,96126.0,0.20805916]